fUSD/lending_fUSD_20250503
["ID","MTS","AMOUNT","RATE_DAILY","PERIOD"]
[359682538,1746247847728,-1337.8,0.0001985,2]
[359682539,1746247847738,-450.0,0.0001985,2]
[359682540,1746247847747,-573.13,0.0001985,2]
[359682541,1746247847756,-450.0,0.0001985,2]
[359682542,1746247847765,-546.21,0.0001985,2]
[359682543,1746247847774,-450.0,0.0001985,2]
[359682544,1746247847783,-649.53,0.0001985,2]
[359682545,1746247847792,-450.0,0.0001985,2]
[359682546,1746247847802,-2099.82,0.0001985,2]
[359682547,1746247847811,-450.0,0.0001985,2]
[359682548,1746247847820,-525.84,0.0001985,2]
[359682549,1746247847829,-450.0,0.0001985,2]
[359682550,1746247847838,-3257.3,0.0001985,2]
[359682551,1746247847847,-999.0,0.0001985,2]
[359682552,1746247847856,-450.0,0.0001985,2]
[359682553,1746247847865,-667.6,0.0001985,2]
[359682554,1746247847875,-576.9,0.0001985,2]
[359682555,1746247847886,-450.0,0.0001985,2]
[359682556,1746247847895,-450.0,0.0001985,2]
[359682557,1746247847906,-450.0,0.0001985,2]
[359682558,1746247847915,-601.02,0.0001985,2]
[359682559,1746247847925,-1896.61,0.0001985,2]
[359682560,1746247847934,-588.25,0.0001985,2]
[359682561,1746247847943,-450.0,0.0001985,2]
[359682562,1746247847952,-450.0,0.0001985,2]
[359682563,1746247847962,-827.05,0.0001985,2]
[359682564,1746247847971,-849.23,0.0001985,2]
[359682565,1746247847982,-450.0,0.0001985,2]
[359682566,1746247847991,-835.69,0.0001985,2]
[359682567,1746247848001,-492.77701312,0.0001985,2]
[359682568,1746247848010,-491.81617772,0.0001985,2]
[359682569,1746247848020,-450.0,0.0001985,2]
[359682570,1746247848029,-1521.3,0.0001985,2]
[359682571,1746247848038,-647.64,0.0001985,2]
[359682572,1746247848047,-488.1697104,0.0001985,2]
[359682573,1746247848056,-3995.65,0.0001985,2]
[359682574,1746247848065,-450.0,0.0001985,2]
[359682575,1746247848075,-477.38,0.0001985,2]
[359682576,1746247848084,-524.8,0.0001985,2]
[359682577,1746247848093,-450.0,0.0001985,2]
[359682578,1746247848103,-466.66,0.0001985,2]
[359682579,1746247848112,-457.5,0.0001985,2]
[359682580,1746247848121,-4605.11,0.0001985,2]
[359682581,1746247848130,-450.0,0.0001985,2]
[359682582,1746247848139,-450.0,0.0001985,2]
[359682583,1746247848148,-4104.92,0.0001985,2]
[359682584,1746247848158,-450.0,0.0001985,2]
[359682585,1746247848167,-354.35488265,0.0001985,2]
[359682586,1746247848176,-450.0,0.0001985,2]
[359682587,1746247848186,-4493.69,0.0001985,2]
[359682588,1746247848195,-166.2109942,0.0001985,2]
[359682589,1746247848204,-450.0,0.00019851,2]
[359682590,1746247848213,-557.82,0.00019851,2]
[359682591,1746247848222,-450.0,0.00019851,2]
[359682592,1746247848231,-450.0,0.00019851,2]
[359682593,1746247848241,-450.0,0.00019851,2]
[359682594,1746247848250,-586.69,0.00019851,2]
[359682595,1746247848260,-450.0,0.00019851,2]
[359682596,1746247848269,-450.0,0.00019851,2]
[359682597,1746247848278,-450.0,0.00019851,2]
[359682598,1746247848288,-450.0,0.00019851,2]
[359682599,1746247848297,-450.0,0.00019851,2]
[359682600,1746247848306,-450.0,0.00019851,2]
[359682601,1746247848315,-450.0,0.00019851,2]
[359682602,1746247848325,-450.0,0.00019851,2]
[359682603,1746247848334,-450.0,0.00019851,2]
[359682604,1746247848343,-548.9,0.00019851,2]
[359682605,1746247848352,-450.0,0.00019851,2]
[359682606,1746247848362,-300.0,0.00019851,2]
[359682607,1746247848371,-486.43,0.00019851,2]
[359682608,1746247848380,-450.0,0.00019851,2]
[359682609,1746247848389,-450.0,0.00019851,2]
[359682610,1746247848399,-450.0,0.00019851,2]
[359682611,1746247848408,-460.4631633,0.00019851,2]
[359682612,1746247848417,-499.31,0.00019851,2]
[359682613,1746247848427,-450.0,0.00019851,2]
[359682614,1746247848436,-450.0,0.00019851,2]
[359682615,1746247848445,-450.0,0.00019851,2]
[359682616,1746247848455,-1000.0,0.00019852,2]
[359682617,1746247848464,-1000.0,0.00019852,2]
[359682618,1746247848474,-1000.0,0.00019852,2]
[359682619,1746247848483,-1000.0,0.00019852,2]
[359682620,1746247848493,-1000.0,0.00019852,2]
[359682621,1746247848503,-1026.39740553,0.00019852,2]
[359682622,1746247848512,-502.03824869,0.00019853,2]
[359682623,1746247848522,-500.0,0.00019855,2]
[359682624,1746247848532,-228.28560537,0.00019855,2]
[359682625,1746247848543,-150.0,0.00019855,2]
[359682626,1746247848556,-500.0,0.00019855,2]
[359682627,1746247848566,-500.0,0.00019855,2]
[359682628,1746247848576,-150.0,0.00019855,2]
[359682629,1746247848586,-500.0,0.00019855,2]
[359682630,1746247848596,-222.40857925,0.00019855,2]
[359682631,1746247848716,-500.0,0.00019855,2]
[359682632,1746247848726,-500.0,0.00019855,2]
[359682633,1746247848737,-500.0,0.00019855,2]
[359682634,1746247848746,-500.0,0.00019855,2]
[359682635,1746247848756,-500.0,0.00019855,2]
[359682636,1746247848765,-150.0,0.00019855,2]
[359682637,1746247848775,-500.0,0.00019855,2]
[359682638,1746247848785,-12500.0,0.00019856,2]
[359682639,1746247848794,-12500.0,0.00019865,2]
[359682640,1746247848804,-402.99682489,0.00019873,2]
[359682641,1746247848815,-162.45076163,0.00019873,2]
[359682642,1746247848825,-500.0,0.00019873,2]
[359682643,1746247848835,-500.0,0.00019873,2]
[359682644,1746247848844,-500.0,0.00019873,2]
[359682645,1746247848854,-500.68219032,0.00019873,2]
[359682646,1746247848863,-500.0,0.00019873,2]
[359682647,1746247848873,-500.0,0.00019873,2]
[359682648,1746247848882,-500.0,0.00019873,2]
[359682649,1746247848892,-500.0,0.00019873,2]
[359682650,1746247848903,-501.88937331,0.00019873,2]
[359682651,1746247848913,-500.0,0.00019873,2]
[359682652,1746247848924,-500.0,0.00019873,2]
[359682653,1746247848935,-312.01437503,0.00019873,2]
[359682654,1746247848946,-500.0,0.00019873,2]
[359682655,1746247848957,-500.0,0.00019873,2]
[359682656,1746247848968,-503.89540493,0.00019873,2]
[359682657,1746247848979,-12500.0,0.00019874,2]
[359682658,1746247848989,-330.48091671,0.00019875,2]
[359682659,1746247848998,-12500.0,0.00019882,2]
[359682660,1746247849008,-12500.0,0.00019891,2]
[359682661,1746247849018,-636.79516556,0.000199,2]
[359682662,1746247849027,-12500.0,0.000199,2]
[359682663,1746247849038,-298.66,0.000199,2]
[359682664,1746247849047,-166.2109942,0.000199,2]
[359682665,1746247849057,-2780.94450003,0.000199,2]
[359682666,1746247849067,-330.48091671,0.000199,2]
[359682667,1746247849076,-5152.27893101,0.000199,2]
[359682668,1746247849086,-502.03824869,0.000199,2]
[359682669,1746247849096,-1903.07467553,0.000199,2]
[359682670,1746247849106,-180.84581838,0.000199,3]
[359682671,1746247849115,-496.04724683,0.000199,2]
[359682672,1746247849124,-203.9699087,0.000199,2]
[359682673,1746247849134,-2133.0,0.000199,2]
[359682674,1746247849143,-778.24240299,0.000199,2]
[359682675,1746247849153,-4093.995,0.00019902,2]
[359682676,1746247849162,-323.067,0.00019902,2]
[359682677,1746247849172,-219.38219706,0.00019944,2]
[359682678,1746247849181,-794.43630907,0.00019946,2]
[359682679,1746247849190,-24428.0,0.00019973,2]
[359682680,1746247849200,-500.0,0.00019973,2]
[359682681,1746247849209,-513.96299407,0.00019973,2]
[359682682,1746247849218,-501.15741321,0.00019973,2]
[359682683,1746247849228,-501.21994559,0.00019973,2]
[359682684,1746247849237,-160.45164529,0.00019973,2]
[359682685,1746247849247,-500.0,0.00019973,2]
[359682686,1746247849256,-500.0,0.00019973,2]
[359682687,1746247849265,-506.33875235,0.00019973,2]
[359682688,1746247849275,-959.0,0.00019973,2]
[359682689,1746247849284,-500.0,0.00019973,2]
[359682690,1746247849293,-532.23391832,0.00019973,2]
[359682691,1746247849303,-152.63342926,0.00019973,2]
[359682692,1746247849312,-500.0,0.00019973,2]
[359682693,1746247849322,-160.20238278,0.00019973,2]
[359682694,1746247849331,-500.0,0.00019973,2]
[359682695,1746247849341,-502.06385384,0.00019973,2]
[359682696,1746247849351,-500.0,0.00019973,2]
[359682697,1746247849360,-539.24803438,0.00019973,2]
[359682698,1746247849370,-500.0,0.00019973,2]
[359682699,1746247849379,-517.26161729,0.00019973,2]
[359682700,1746247849389,-500.0,0.00019973,2]
[359682701,1746247849399,-500.0,0.00019973,2]
[359682702,1746247849408,-500.8951883,0.00019973,2]
[359682703,1746247849418,-303.17184781,0.00019973,2]
[359682704,1746247849427,-505.26039964,0.00019973,2]
[359682705,1746247849437,-500.0,0.00019973,2]
[359682706,1746247849447,-243.83231524,0.00019973,2]
[359682707,1746247849457,-7590.3923136,0.00019986,2]
[359682708,1746247849466,-180173.1765682,0.00019986,2]
[359682709,1746247849475,-62952.2318045,0.00019986,2]
[359682710,1746247849486,-14506.6757595,0.00019986,2]
[359682711,1746247849495,-1077.03046632,0.0001999,2]
[359682712,1746247849505,-1077.03046632,0.0001999,2]
[359682713,1746247849515,-500.0,0.00019999,2]
[359682714,1746247849525,-679.71892541,0.00019999,2]
[359682715,1746247849535,-500.0,0.00019999,2]
[359682716,1746247849545,-300.0,0.00019999,2]
[359682717,1746247849555,-300.0,0.00019999,2]
[359682718,1746247849565,-3975.69203346,0.00019999,2]
[359682719,1746247849575,-66823.38330118,0.00019999,2]
[359682720,1746247849585,-267.56632987,0.0002,2]
[359682721,1746247849595,-606115.05961028,0.0002,2]
[359682722,1746247849605,-3053563.00391125,0.0002,2]
[359682723,1746247849924,-1000.0,0.00019575,2]
[359682724,1746247849946,-450.0,0.00019576,2]
[359682725,1746247849955,-40.56658317,0.0002,2]
[359682726,1746247849998,-629.28607592,0.00019576,2]
[359682727,1746247850010,-126.65392408,0.00019576,2]
[359682728,1746247850021,-322.26433952,0.0001985,2]
[359682729,1746247850033,-127.73566048,0.0001985,2]
[359682730,1746247850044,-154.03398938,0.0002,2]
[359682731,1746247850259,-1000.0,0.00019575,2]
[359682732,1746247850268,-1000.0,0.00019575,2]
[359682733,1746247850278,-615.06841818,0.00019575,2]
[359682734,1746247850628,-450.0,0.00019575,2]
[359682735,1746247850639,-476.41,0.00019575,2]
[359682736,1746247850649,-384.93158182,0.00019575,2]
[359682737,1746247850658,-151.0,0.00019758,2]
[359682738,1746247850668,-160.14,0.00019849,2]
[359682739,1746247850942,-755.94,0.0001985,2]
[359682740,1746247850966,-3066.34448379,0.0002,2]
[359682741,1746247850978,-3851.27602168,0.0002,2]
[359682742,1746247850996,-5111.37686811,0.0002,2]
[359682743,1746247851008,-28856.89699659,0.0002,2]
[359682744,1746247851019,-20386.52753663,0.0002,2]
[359682745,1746247851031,-3286.6366773,0.0002,2]
[359682746,1746247851049,-450.0,0.00019575,2]
[359682747,1746247851059,-15355.43396305,0.0002,2]
[359682748,1746247943446,20.3203701,0.0001897,7]
[359682749,1746247943472,229.6796299,0.0001897,7]
[359682750,1746248046559,156.67,0.00019178,2]
[359682751,1746248196406,250.0,0.00032,120]
[359682752,1746248305468,277.0,0.00032,120]
[359682753,1746248326842,4026.65505005,0.00019475,2]
[359682755,1746248390155,1000.0,0.00018818,2]
[359682756,1746248392396,439.96967517,0.00019475,2]
[359682757,1746248414788,2000.0,0.000301,120]
[359682758,1746248547300,167.050314,0.0003287,60]
[359682759,1746248550259,167.050314,0.0003287,61]
[359682760,1746248552876,167.050314,0.0003287,62]
[359682761,1746248555283,167.050314,0.0003287,63]
[359682762,1746248557930,167.050314,0.0003287,64]
[359682763,1746248560576,167.050314,0.0003287,65]
[359682764,1746248563605,167.050314,0.0003287,66]
[359682765,1746248566148,167.050314,0.0003287,67]
[359682766,1746248568743,167.050314,0.0003287,68]
[359682767,1746248571777,167.050314,0.0003287,69]
[359682768,1746248576143,167.050314,0.0003287,70]
[359682769,1746248578855,167.050314,0.0003287,71]
[359682770,1746248582349,167.050314,0.0003287,72]
[359682771,1746248584981,167.050314,0.0003287,73]
[359682772,1746248587724,167.050314,0.0003287,74]
[359682773,1746248590858,167.050314,0.0003287,75]
[359682774,1746248593381,167.050314,0.0003287,76]
[359682775,1746248596334,167.050314,0.0003287,77]
[359682776,1746248599070,167.050314,0.0003287,78]
[359682777,1746248601845,167.050314,0.0003287,79]
[359682778,1746248605759,167.050314,0.0003287,80]
[359682779,1746248608721,167.050314,0.0003287,81]
[359682780,1746248613568,167.050314,0.0003287,82]
[359682781,1746248617760,167.050314,0.0003287,83]
[359682782,1746248620167,167.050314,0.0003287,84]
[359682783,1746248623998,167.050314,0.0003287,85]
[359682784,1746248627796,167.050314,0.0003287,86]
[359682785,1746248630510,167.050314,0.0003287,87]
[359682786,1746248633300,167.050314,0.0003287,88]
[359682787,1746248636494,167.050314,0.0003287,89]
[359682788,1746248641325,167.050314,0.0003287,90]
[359682789,1746248644977,167.050314,0.0003287,91]
[359682790,1746248647613,167.050314,0.0003287,92]
[359682791,1746248650186,167.050314,0.0003287,93]
[359682792,1746248653612,167.050314,0.0003287,94]
[359682793,1746248656259,167.050314,0.0003287,95]
[359682794,1746248658687,167.050314,0.0003287,96]
[359682795,1746248661029,167.050314,0.0003287,97]
[359682796,1746248664991,167.050314,0.0003287,98]
[359682797,1746248667847,167.050314,0.0003287,99]
[359682798,1746248671873,167.050314,0.0003287,100]
[359682799,1746248674166,167.050314,0.0003287,101]
[359682800,1746248678907,167.050314,0.0003287,102]
[359682801,1746248682758,167.050314,0.0003287,103]
[359682802,1746248685390,167.050314,0.0003287,104]
[359682803,1746248688266,167.050314,0.0003287,105]
[359682804,1746248691302,167.050314,0.0003287,106]
[359682805,1746248693518,167.050314,0.0003287,107]
[359682806,1746248696481,167.050314,0.0003287,108]
[359682807,1746248701871,167.050314,0.0003287,109]
[359682808,1746248747469,250.0,0.00017,2]
[359682809,1746248748527,300.0,0.00019,2]
[359682815,1746248778712,395.97270759,0.00019475,2]
[359682817,1746248841364,3623.98954509,0.00019474,2]
[359682818,1746248846827,167.050314,0.0003287,110]
[359682819,1746248851798,167.050314,0.0003287,111]
[359682820,1746248854205,167.050314,0.0003287,112]
[359682821,1746248857007,167.050314,0.0003287,113]
[359682822,1746248859405,167.050314,0.0003287,114]
[359682823,1746248862271,167.050314,0.0003287,115]
[359682824,1746248865372,167.050314,0.0003287,116]
[359682825,1746248868341,167.050314,0.0003287,117]
[359682826,1746248870988,167.050314,0.0003287,118]
[359682827,1746248873859,167.050314,0.0003287,119]
[359682828,1746248877772,167.050314,0.0003287,120]
[359682830,1746249031884,-304.0,0.0001952,2]
[359682832,1746249038033,-299.25,0.0001952,2]
[359682833,1746249040215,-596.75,0.0001952,2]
[359682834,1746249040226,-224.0,0.0001952,2]
[359682835,1746249040236,-151.0,0.00019521,2]
[359682836,1746249040246,-66813.67098966,0.00019521,2]
[359682837,1746249040256,-3623.98954501,0.00019521,2]
[359682838,1746249040266,-395.97270757,0.00019522,2]
[359682839,1746249040276,-151.0,0.00019563,2]
[359682840,1746249040286,-207.4,0.00019563,2]
[359682841,1746249040296,-668.65185757,0.00019563,2]
[359682842,1746249040306,-151.0,0.00019563,2]
[359682843,1746249040316,-3623.98954501,0.00019569,2]
[359682844,1746249040326,-395.97270757,0.00019569,2]
[359682845,1746249040335,-450.0,0.00019573,2]
[359682846,1746249040345,-450.0,0.00019573,2]
[359682847,1746249040354,-450.0,0.00019573,2]
[359682848,1746249040364,-450.0,0.00019573,2]
[359682849,1746249040374,-450.0,0.00019573,2]
[359682850,1746249040384,-450.0,0.00019574,2]
[359682851,1746249040394,-450.0,0.00019574,2]
[359682852,1746249040404,-450.0,0.00019574,2]
[359682853,1746249040414,-450.0,0.00019574,2]
[359682854,1746249040424,-414.13707132,0.00019574,2]
[359682855,1746249040434,-450.0,0.00019574,2]
[359682856,1746249040562,-450.0,0.00019574,2]
[359682857,1746249040572,-450.0,0.00019574,2]
[359682858,1746249040582,-450.0,0.00019574,2]
[359682859,1746249040591,-450.0,0.00019574,2]
[359682860,1746249040602,-450.0,0.00019574,2]
[359682861,1746249040613,-450.0,0.00019574,2]
[359682862,1746249040623,-450.0,0.00019574,2]
[359682863,1746249040633,-450.0,0.00019574,2]
[359682864,1746249040644,-450.0,0.00019574,2]
[359682865,1746249040654,-387.79334774,0.00019574,2]
[359682866,1746249040664,-450.0,0.00019574,2]
[359682867,1746249040674,-450.0,0.00019574,2]
[359682868,1746249040683,-450.0,0.00019574,2]
[359682869,1746249040693,-850.24,0.00019574,2]
[359682870,1746249040703,-450.0,0.00019574,2]
[359682871,1746249040713,-450.0,0.00019574,2]
[359682872,1746249040723,-450.0,0.00019574,2]
[359682873,1746249040732,-450.0,0.00019574,2]
[359682874,1746249040742,-752.296205,0.00019574,2]
[359682875,1746249040751,-450.0,0.00019574,2]
[359682876,1746249040761,-450.0,0.00019574,2]
[359682877,1746249040770,-652.98,0.00019574,2]
[359682878,1746249040780,-450.0,0.00019574,2]
[359682879,1746249040789,-450.0,0.00019574,2]
[359682880,1746249040799,-450.0,0.00019574,2]
[359682881,1746249040810,-450.0,0.00019574,2]
[359682882,1746249040819,-549.086297,0.00019574,2]
[359682883,1746249040833,-450.0,0.00019574,2]
[359682884,1746249040844,-450.0,0.00019574,2]
[359682885,1746249040854,-450.0,0.00019574,2]
[359682886,1746249040864,-450.0,0.00019574,2]
[359682887,1746249040874,-450.0,0.00019574,2]
[359682888,1746249040884,-450.0,0.00019574,2]
[359682889,1746249040893,-450.0,0.00019574,2]
[359682890,1746249040903,-450.0,0.00019574,2]
[359682891,1746249040913,-450.0,0.00019574,2]
[359682892,1746249040923,-450.0,0.00019574,2]
[359682893,1746249040938,-450.0,0.00019574,2]
[359682894,1746249040948,-450.0,0.00019574,2]
[359682895,1746249040958,-450.0,0.00019574,2]
[359682896,1746249040968,-450.0,0.00019574,2]
[359682897,1746249040977,-450.0,0.00019574,2]
[359682898,1746249040987,-450.0,0.00019574,2]
[359682899,1746249040996,-450.0,0.00019574,2]
[359682900,1746249041009,-450.0,0.00019574,2]
[359682901,1746249041019,-450.0,0.00019574,2]
[359682902,1746249041029,-450.0,0.00019574,2]
[359682903,1746249041039,-450.0,0.00019574,2]
[359682904,1746249041049,-450.0,0.00019574,2]
[359682905,1746249041058,-450.0,0.00019574,2]
[359682906,1746249041068,-450.0,0.00019574,2]
[359682907,1746249041078,-450.0,0.00019574,2]
[359682908,1746249041089,-450.0,0.00019574,2]
[359682909,1746249041099,-450.0,0.00019574,2]
[359682910,1746249041109,-450.0,0.00019574,2]
[359682911,1746249041119,-450.0,0.00019574,2]
[359682912,1746249041128,-450.0,0.00019574,2]
[359682913,1746249041138,-450.0,0.00019574,2]
[359682914,1746249041147,-450.0,0.00019574,2]
[359682915,1746249041157,-503.91,0.00019574,2]
[359682916,1746249041167,-450.0,0.00019574,2]
[359682917,1746249041176,-450.0,0.00019574,2]
[359682918,1746249041186,-450.0,0.00019574,2]
[359682919,1746249041195,-775.19,0.00019574,2]
[359682920,1746249041204,-450.0,0.00019574,2]
[359682921,1746249041214,-450.0,0.00019574,2]
[359682922,1746249041223,-977.16,0.00019574,2]
[359682923,1746249041233,-450.0,0.00019574,2]
[359682924,1746249041242,-450.0,0.00019574,2]
[359682925,1746249041251,-5344.84,0.00019574,2]
[359682926,1746249041261,-450.0,0.00019574,2]
[359682927,1746249041270,-560.35,0.00019574,2]
[359682928,1746249041280,-450.0,0.00019574,2]
[359682929,1746249041290,-450.0,0.00019574,2]
[359682930,1746249041299,-450.0,0.00019574,2]
[359682931,1746249041309,-5216.27,0.00019574,2]
[359682932,1746249041318,-312.69658061,0.00019574,2]
[359682933,1746249041327,-450.0,0.00019574,2]
[359682934,1746249041337,-450.0,0.00019574,2]
[359682935,1746249041347,-450.0,0.00019574,2]
[359682936,1746249041356,-450.0,0.00019574,2]
[359682937,1746249041366,-450.0,0.00019574,2]
[359682938,1746249041383,-418.70387019,0.00019574,2]
[359682939,1746249041396,-450.0,0.00019574,2]
[359682940,1746249041406,-465.94904646,0.00019574,2]
[359682941,1746249041416,-450.0,0.00019574,2]
[359682942,1746249041426,-450.0,0.00019574,2]
[359682943,1746249041435,-612.19,0.00019574,2]
[359682944,1746249041446,-450.0,0.00019574,2]
[359682945,1746249041455,-465.22,0.00019574,2]
[359682946,1746249041464,-450.0,0.00019574,2]
[359682947,1746249041474,-450.0,0.00019574,2]
[359682948,1746249041484,-450.0,0.00019574,2]
[359682949,1746249041493,-450.0,0.00019574,2]
[359682950,1746249041503,-450.0,0.00019574,2]
[359682951,1746249041512,-598.05,0.00019574,2]
[359682952,1746249041523,-450.0,0.00019574,2]
[359682953,1746249041532,-450.0,0.00019574,2]
[359682954,1746249041542,-450.0,0.00019574,2]
[359682955,1746249041551,-1395.96,0.00019574,2]
[359682956,1746249041561,-677.78,0.00019574,2]
[359682957,1746249041571,-450.0,0.00019574,2]
[359682958,1746249041582,-111044.15,0.00019574,2]
[359682959,1746249041592,-450.0,0.00019574,2]
[359682960,1746249041602,-573.59694529,0.00019574,2]
[359682961,1746249041612,-450.0,0.00019574,2]
[359682962,1746249041622,-2191.12,0.00019574,2]
[359682963,1746249041633,-450.0,0.00019574,2]
[359682964,1746249041643,-450.0,0.00019574,2]
[359682965,1746249041653,-521.16,0.00019574,2]
[359682966,1746249041663,-450.0,0.00019574,2]
[359682967,1746249041672,-450.0,0.00019574,2]
[359682968,1746249041682,-450.0,0.00019574,2]
[359682969,1746249041693,-450.0,0.00019574,2]
[359682970,1746249041703,-450.0,0.00019574,2]
[359682971,1746249041713,-450.0,0.00019574,2]
[359682972,1746249041723,-450.0,0.00019574,2]
[359682973,1746249041733,-450.0,0.00019574,2]
[359682974,1746249041742,-450.0,0.00019574,2]
[359682975,1746249041752,-450.0,0.00019574,2]
[359682976,1746249041762,-450.0,0.00019574,2]
[359682977,1746249041771,-450.0,0.00019574,2]
[359682978,1746249041781,-450.0,0.00019574,2]
[359682979,1746249041790,-450.0,0.00019574,2]
[359682980,1746249041800,-667.6,0.00019574,2]
[359682981,1746249041810,-465.11,0.00019574,2]
[359682982,1746249041819,-450.0,0.00019574,2]
[359682983,1746249041829,-477.9,0.00019574,2]
[359682984,1746249041839,-450.0,0.00019574,2]
[359682985,1746249041849,-450.0,0.00019574,2]
[359682986,1746249041859,-450.0,0.00019574,2]
[359682987,1746249041868,-450.0,0.00019574,2]
[359682988,1746249041878,-1225.07,0.00019574,2]
[359682989,1746249041888,-569.96,0.00019574,2]
[359682990,1746249041898,-1896.61,0.00019574,2]
[359682991,1746249041908,-1136.7,0.00019574,2]
[359682992,1746249041918,-450.0,0.00019574,2]
[359682993,1746249041929,-450.0,0.00019574,2]
[359682994,1746249041942,-450.0,0.00019574,2]
[359682995,1746249041951,-395.39490778,0.00019574,2]
[359682996,1746249041961,-450.0,0.00019574,2]
[359682997,1746249041971,-450.0,0.00019574,2]
[359682998,1746249041981,-588.25,0.00019574,2]
[359682999,1746249041991,-450.0,0.00019574,2]
[359683000,1746249042000,-450.0,0.00019574,2]
[359683001,1746249042011,-450.0,0.00019574,2]
[359683002,1746249042020,-450.0,0.00019574,2]
[359683003,1746249042030,-450.0,0.00019574,2]
[359683004,1746249042040,-450.0,0.00019574,2]
[359683005,1746249042050,-450.0,0.00019574,2]
[359683006,1746249042059,-525.84,0.00019574,2]
[359683007,1746249042068,-450.0,0.00019574,2]
[359683008,1746249042078,-849.23,0.00019574,2]
[359683009,1746249042088,-450.0,0.00019574,2]
[359683010,1746249042101,-450.0,0.00019574,2]
[359683011,1746249042112,-3257.3,0.00019574,2]
[359683012,1746249042122,-450.0,0.00019574,2]
[359683013,1746249042132,-450.0,0.00019574,2]
[359683014,1746249042144,-498.21,0.00019574,2]
[359683015,1746249042154,-450.0,0.00019574,2]
[359683016,1746249042164,-500.59,0.00019574,2]
[359683017,1746249042176,-450.0,0.00019574,2]
[359683018,1746249042187,-450.0,0.00019574,2]
[359683019,1746249042198,-1521.3,0.00019574,2]
[359683020,1746249042209,-525.43,0.00019574,2]
[359683021,1746249042219,-4356.18,0.00019574,2]
[359683022,1746249042228,-576.9,0.00019574,2]
[359683023,1746249042239,-977.01,0.00019574,2]
[359683024,1746249042249,-450.0,0.00019574,2]
[359683025,1746249042258,-450.0,0.00019574,2]
[359683026,1746249042269,-524.8,0.00019574,2]
[359683027,1746249042279,-450.0,0.00019574,2]
[359683028,1746249042290,-2975.0,0.00019574,2]
[359683029,1746249042300,-450.0,0.00019574,2]
[359683030,1746249042312,-647.64,0.00019574,2]
[359683031,1746249042323,-476.17,0.00019574,2]
[359683032,1746249042334,-450.0,0.00019574,2]
[359683033,1746249042344,-457.5,0.00019574,2]
[359683034,1746249042356,-601.02,0.00019574,2]
[359683035,1746249042366,-450.0,0.00019574,2]
[359683036,1746249042376,-1495.39,0.00019574,2]
[359683037,1746249042388,-477.38,0.00019574,2]
[359683038,1746249042400,-985.77,0.00019574,2]
[359683039,1746249042410,-450.0,0.00019574,2]
[359683040,1746249042422,-450.0,0.00019574,2]
[359683041,1746249042434,-568.95,0.00019574,2]
[359683042,1746249042444,-450.0,0.00019574,2]
[359683043,1746249042454,-450.0,0.00019574,2]
[359683044,1746249042463,-466.66,0.00019574,2]
[359683045,1746249042472,-529.78928757,0.00019574,2]
[359683046,1746249042481,-450.0,0.00019574,2]